bitfinex-derivatives/quotes_SOLF0:USTF0_20250310
["timestamp","ask_amount","ask_price","bid_price","bid_amount"]
[1741627684609,33.43767001,118.77,118.74,8.4253]
[1741627685007,33.43767001,118.77,118.71,40.45527463]
[1741627685206,33.49789059,118.77,118.74,0.05488088]
[1741627685409,8.4247,118.76,118.74,0.05488088]
[1741627685804,33.49089593,118.77,118.74,0.05488088]
[1741627686614,8.425,118.75,118.74,0.05488088]
[1741627687001,33.49089593,118.77,118.74,0.05488088]
[1741627687211,0.05322592,118.77,118.74,0.05488088]
[1741627687513,0.05322592,118.77,118.74,8.48018088]
[1741627687807,0.05322592,118.77,118.74,0.05488088]
[1741627688007,278.08,118.8,118.74,0.05488088]
[1741627688211,33.43767001,118.81,118.74,4.32548088]
[1741627688707,8.4218,118.8,118.76,8.4242]
[1741627689215,0.0551243,118.79,118.77,0.05913038]
[1741627689912,33.43767001,118.81,118.77,0.05913038]
[1741627690107,33.43767001,118.83,118.77,96.09440501]
[1741627690507,20.12707001,118.83,118.79,40.45527463]
[1741627690807,13.47157001,118.83,118.8,4.0016]
[1741627691112,13.52801834,118.83,118.8,12.48503793]
[1741627691405,13.52801834,118.83,118.8,4.06403793]
[1741627692003,13.52801834,118.83,118.8,0.06243793]
[1741627693309,17.94871834,118.83,118.8,0.06243793]
[1741627693613,8.4208,118.81,118.8,0.06243793]
[1741627694118,4.47714833,118.83,118.73,74.07710792]
[1741627694119,8.4233,118.78,118.73,74.07710792]
[1741627694309,125.66825625,118.83,118.73,74.07710792]
[1741627694504,125.61180792,118.83,118.73,8.426]
[1741627694704,8.4233,118.78,118.73,8.426]
[1741627694909,125.61180792,118.83,118.72,8.4269]
[1741627695311,8.4238,118.77,118.76,0.05587605]
[1741627695814,0.06367428,118.79,118.76,0.05587605]
[1741627697219,4.4207,118.83,118.77,65.65110792]
[1741627697421,4.0039,118.84,118.77,69.95430792]
[1741627697716,4.0039,118.84,118.79,8.4218]
[1741627697914,4.0039,118.84,118.77,69.95430792]
[1741627698216,403.34110792,118.87,118.77,69.95430792]
[1741627698417,0.05685491,118.82,118.79,0.05611266]
[1741627698605,0.05685491,118.82,118.77,69.95430792]
[1741627698810,0.05685491,118.82,118.8,8.4211]
[1741627699413,0.05685491,118.82,118.79,0.05386582]
[1741627700414,8.4213,118.81,118.79,0.05386582]
[1741627700814,0.05685491,118.82,118.79,0.05386582]
[1741627701712,0.05685491,118.82,118.79,8.47606582]
[1741627701918,0.05685491,118.82,118.79,0.05386582]
[1741627702814,8.4178,118.86,118.79,65.70497374]
[1741627703022,8.4178,118.86,118.79,65.65110792]
[1741627703415,277.84,118.92,118.84,8.4186]
[1741627703619,277.84,118.92,118.85,65.65110792]
[1741627703822,12.6559,118.94,118.85,65.65110792]
[1741627704221,0.0601366,118.9,118.87,0.05999421]
[1741627704425,0.0601366,118.9,118.87,8.47639421]
[1741627704931,0.0601366,118.9,118.87,0.05999421]
[1741627706126,4.2377366,118.9,118.87,0.05999421]
[1741627707228,0.0601366,118.9,118.87,0.05999421]
[1741627708623,121.03110792,118.89,118.79,65.65110792]
[1741627708827,4.4145,118.88,118.79,4.0043]
[1741627709128,65.65110792,118.87,118.79,4.0043]
[1741627709721,8.4183,118.85,118.82,0.05977634]
[1741627709929,0.05928,118.84,118.82,0.05977634]
[1741627710929,8.47828,118.84,118.82,0.05977634]
[1741627711129,0.05928,118.84,118.82,0.05977634]
[1741627711528,8.47828,118.84,118.82,0.05977634]
[1741627711929,0.05928,118.84,118.82,0.05977634]
[1741627715419,8.47828,118.84,118.82,0.05977634]
[1741627715622,0.05928,118.84,118.82,0.05977634]
[1741627717021,65.65110792,118.93,118.82,0.05977634]
[1741627717220,281.9138,118.9,118.82,8.42]
[1741627717431,281.9138,118.9,118.81,55.28]
[1741627717620,281.9138,118.9,118.79,69.65540792]
[1741627717823,65.65110792,118.89,118.79,59.2843]
[1741627718031,65.65110792,118.87,118.77,4.1332]
[1741627718219,8.4219,118.8,118.76,12.5999]
[1741627718625,0.06475812,118.79,118.77,0.05525157]
[1741627718828,8.4224,118.79,118.77,0.05525157]
[1741627719031,0.06258631,118.79,118.77,0.05525157]
[1741627719425,8.4259,118.74,118.69,12.6048]
[1741627719733,4.363,118.78,118.69,4.1759]
[1741627719937,8.4232,118.78,118.72,40.42746272]
[1741627720135,63.9079,118.8,118.72,40.42746272]
[1741627720432,8.4227,118.79,118.72,40.42746272]
[1741627720731,0.06120478,118.77,118.75,0.06099786]
[1741627721133,55.26,118.82,118.75,0.06099786]
[1741627722238,40.42746272,118.79,118.69,12.5722]
[1741627722440,59.5313,118.78,118.69,12.5722]
[1741627723134,8.4245,118.76,118.69,12.5722]
[1741627723437,0.05567329,118.75,118.72,0.0535294]
[1741627724534,108.05407902,118.82,118.74,40.42746272]
[1741627724836,40.42746272,118.83,118.73,55.22]
[1741627725028,8.4228,118.79,118.75,8.425]
[1741627725232,4.0681,118.82,118.73,55.22]
[1741627725432,4.0681,118.82,118.72,40.42746272]
[1741627725732,0.0590647,118.78,118.76,0.0587157]
[1741627727737,0.0590647,118.78,118.7,8.1741]
[1741627727941,95.62746272,118.77,118.65,55.2]
[1741627728141,40.42746272,118.75,118.65,40.42746272]
[1741627728341,4.1558,118.74,118.65,8.4318]
[1741627728843,4.1558,118.74,118.64,8.0432]
[1741627728844,8.4304,118.68,118.64,8.0432]
[1741627729045,0.06078914,118.71,118.64,8.0432]
[1741627729242,55.18,118.79,118.69,8.4293]
[1741627729435,0.06044618,118.69,118.66,55.18]
[1741627729633,55.18,118.74,118.66,0.06311142]
[1741627729838,0.06232458,118.69,118.66,0.06311142]
[1741627730043,4.3202,118.77,118.64,12.172]
[1741627730044,44.74766272,118.77,118.64,12.172]
[1741627730236,4.3202,118.77,118.67,65.74341753]
[1741627730441,4.3202,118.77,118.66,65.74341753]
[1741627730640,4.3202,118.77,118.68,65.74341753]
[1741627730841,8.4262,118.74,118.68,74.17321753]
[1741627731038,4.3202,118.77,118.68,65.74341753]
[1741627731234,0.06304112,118.72,118.7,0.05806404]
[1741627731440,4.3202,118.77,118.7,65.80148157]
[1741627731745,55.18,118.78,118.7,65.80148157]
[1741627731940,120.92341753,118.78,118.66,65.74341753]
[1741627732140,65.74341753,118.76,118.64,73.78661753]
[1741627732342,65.74341753,118.74,118.64,8.0432]
[1741627732543,0.06226909,118.71,118.69,0.06041677]
[1741627733040,0.06226909,118.71,118.64,8.0432]
[1741627733945,0.06226909,118.71,118.6,73.93561753]
[1741627734142,65.74341753,118.7,118.66,0.05860659]
[1741627734346,0.05442601,118.67,118.6,8.1922]
[1741627734538,0.05442601,118.67,118.6,73.93561753]
[1741627734739,0.05442601,118.67,118.6,8.1922]
[1741627735441,0.05442601,118.67,118.62,0.06121779]
[1741627736346,8.4336,118.63,118.62,0.06121779]
[1741627737248,8.49632783,118.64,118.62,0.06121779]
[1741627737643,0.06332783,118.64,118.62,0.06121779]
[1741627737839,8.4336,118.63,118.62,0.06121779]
[1741627738950,8.4336,118.63,118.62,1.779e-05]
[1741627740351,8.49642783,118.64,118.62,1.779e-05]
[1741627740649,0.06332783,118.64,118.62,1.779e-05]
[1741627741359,0.06332783,118.64,118.63,8.4336]
[1741627741561,55.12,118.68,118.62,1.779e-05]
[1741627741845,8.4311,118.67,118.62,1.779e-05]
[1741627742049,55.12,118.68,118.62,8.15321779]
[1741627742458,63.5505,118.68,118.62,8.15321779]
[1741627742749,63.5505,118.68,118.63,8.4331]
[1741627742942,0.05695752,118.66,118.62,8.15321779]
[1741627743352,0.05695752,118.66,118.62,4.08611779]
[1741627743651,0.05695752,118.66,118.64,8.4324]
[1741627744152,0.05695752,118.66,118.63,8.4331]
[1741627744352,0.05695752,118.66,118.62,4.08611779]
[1741627745249,0.05695752,118.66,118.64,8.4328]
[1741627745449,0.05695752,118.66,118.62,4.08611779]
[1741627745746,0.05695752,118.66,118.63,8.4329]
[1741627746051,278.14,118.76,118.63,65.74341753]
[1741627746243,55.08,118.74,118.65,65.74341753]
[1741627746443,4.1748,118.75,118.67,65.74341753]
[1741627746653,8.4262,118.74,118.68,4.1378]
[1741627746949,278.14,118.76,118.68,4.1378]
[1741627747144,8.48624531,118.73,118.68,4.1378]
[1741627747351,8.48624531,118.73,118.71,0.05643191]
[1741627747649,0.05934531,118.73,118.71,0.05643191]
[1741627748249,278.14,118.76,118.71,0.05643191]
[1741627748450,44.84991354,118.8,118.71,65.79984944]
[1741627748643,44.84991354,118.8,118.71,65.74341753]
[1741627749147,65.74341753,118.78,118.7,4.3662]
[1741627749350,55.09526396,118.77,118.74,0.05357857]
[1741627749651,8.425,118.75,118.74,0.05357857]
[1741627752652,0.05526396,118.77,118.74,0.05357857]
[1741627753056,8.4249,118.76,118.74,0.05357857]
[1741627753254,0.05526396,118.77,118.74,0.05357857]
[1741627754646,8.425,118.75,118.74,0.05357857]
[1741627755249,54.98,118.75,118.64,40.47557528]
[1741627755450,44.84437528,118.74,118.66,4.1046]
[1741627755657,40.47557528,118.72,118.66,4.1046]
[1741627755860,8.43,118.68,118.61,54.96]
[1741627756058,40.47557528,118.7,118.62,4.1046]
[1741627756455,0.06479421,118.67,118.65,0.06432177]
[1741627757261,54.96,118.71,118.65,0.06432177]
[1741627757562,337.3688,118.74,118.67,8.4307]
[1741627757954,337.3688,118.74,118.65,4.2765]
[1741627758257,377.84437528,118.74,118.65,4.2765]
[1741627758553,0.05164615,118.71,118.68,0.05450667]
[1741627759760,8.47994615,118.71,118.68,0.05450667]
[1741627759961,0.05164615,118.71,118.68,0.05450667]
[1741627760158,8.4293,118.69,118.68,0.05450667]
[1741627760359,0.05164615,118.71,118.68,0.05450667]
[1741627760662,8.4286,118.7,118.68,0.05450667]
[1741627760865,0.05164615,118.71,118.68,0.05450667]
[1741627761158,8.4293,118.69,118.68,0.05450667]
[1741627762261,95.39557528,118.7,118.62,4.1046]
[1741627762461,99.75147528,118.7,118.62,4.1046]
[1741627762963,99.75147528,118.7,118.62,12.5388]
[1741627763157,99.75147528,118.7,118.62,4.1046]
[1741627763562,0.06127584,118.67,118.65,0.05525124]
[1741627763759,8.4282,118.71,118.65,0.05525124]
[1741627763958,8.4282,118.71,118.67,8.4303]
[1741627764459,59.2926,118.73,118.63,54.9]
[1741627764863,8.4296,118.69,118.65,8.4316]
[1741627765064,0.04487698,118.69,118.67,0.05624411]
[1741627765664,8.47457698,118.69,118.67,0.05624411]
[1741627766467,0.04487698,118.69,118.67,8.48694411]
[1741627766658,0.04487698,118.69,118.67,0.05624411]
[1741627766865,0.04487698,118.69,118.68,8.43]
[1741627767160,0.04487698,118.69,118.67,0.05624411]
[1741627767555,0.04487698,118.69,118.67,8.48654411]
[1741627768167,0.04487698,118.69,118.67,0.05624411]
[1741627768659,8.47457698,118.69,118.67,0.05624411]
[1741627768858,0.04487698,118.69,118.67,0.05624411]
[1741627769365,8.47457698,118.69,118.67,0.05624411]
[1741627769562,0.04487698,118.69,118.67,0.05624411]
[1741627769759,8.43,118.68,118.67,0.05624411]
[1741627770367,48.90557528,118.68,118.67,0.05624411]
[1741627771466,8.433,118.64,118.61,4.0055]
[1741627771671,54.82,118.67,118.59,4.2283]
[1741627771967,59.242,118.67,118.59,4.2283]
[1741627772165,278.1,118.66,118.56,4.0742]
[1741627772362,40.47557528,118.64,118.56,4.0742]
[1741627772560,0.06424961,118.62,118.55,4.1056]
[1741627772762,40.53982489,118.62,118.59,0.0636588]
[1741627773271,48.91127528,118.6,118.59,5.88e-05]
[1741627773566,48.91127528,118.6,118.53,4.1114]
[1741627773567,40.47557528,118.6,118.53,4.1114]
[1741627773870,54.82,118.59,118.5,97.03866325]
[1741627774370,54.82,118.59,118.52,8.4409]
[1741627774573,0.06451901,118.56,118.53,0.06100346]
[1741627776073,54.82,118.62,118.54,40.47557528]
[1741627776272,54.82,118.62,118.57,8.4374]
[1741627776471,54.82,118.62,118.55,4.362]
[1741627777069,54.82,118.62,118.56,44.66427528]
[1741627777266,0.05855378,118.6,118.57,0.06186861]
[1741627777770,0.05855378,118.6,118.57,0.05549682]
[1741627779565,0.05855378,118.6,118.58,8.4366]
[1741627779976,0.05855378,118.6,118.57,0.05549682]
[1741627780368,4.2591,118.65,118.57,0.05549682]
[1741627780562,59.0391,118.65,118.55,59.142]
[1741627780766,59.0391,118.65,118.58,8.4367]
[1741627780969,99.51467528,118.65,118.55,59.142]
[1741627781166,67.4716,118.65,118.61,8.4346]
[1741627781469,63.2125,118.65,118.61,8.4346]
[1741627781663,0.04170709,118.64,118.62,8.49313247]
[1741627781970,0.04170709,118.64,118.59,54.76]
[1741627782170,54.76,118.68,118.62,0.06156136]
[1741627782372,0.04170709,118.63,118.62,8.49586136]
[1741627782572,8.4309,118.67,118.62,0.06156136]
[1741627783175,40.47557528,118.69,118.62,0.06156136]
[1741627783665,54.76,118.7,118.62,0.06156136]
[1741627783666,8.4333,118.64,118.62,0.06156136]
[1741627783867,40.47557528,118.68,118.56,99.45217528]
[1741627784070,40.47557528,118.69,118.62,8.48943253]
[1741627784376,40.47557528,118.69,118.57,40.47557528]
[1741627784572,40.47557528,118.67,118.64,0.06474088]
[1741627784772,8.4314,118.66,118.64,0.06474088]
[1741627784971,40.47557528,118.67,118.64,0.06474088]
[1741627785373,8.4321,118.65,118.64,0.06474088]
[1741627785676,48.90767528,118.65,118.64,0.06474088]
[1741627785878,8.4321,118.65,118.64,0.06474088]
[1741627786377,54.74,118.66,118.64,0.06474088]
[1741627786984,8.4321,118.65,118.64,0.06474088]
[1741627787274,54.74,118.66,118.64,0.06474088]
[1741627787981,48.90667528,118.67,118.64,0.06474088]
[1741627788283,282.4503,118.71,118.64,0.06474088]
[1741627788284,54.7,118.68,118.64,0.06474088]
[1741627788982,8.4315,118.66,118.64,0.06474088]
[1741627789681,8.4321,118.65,118.64,0.06474088]
[1741627789982,54.7,118.68,118.64,0.06474088]
[1741627790182,40.47557528,118.67,118.64,0.06474088]
[1741627790483,40.47557528,118.67,118.57,4.173]
[1741627790484,40.47557528,118.65,118.57,4.173]
[1741627790681,54.68,118.64,118.57,4.173]
[1741627790983,8.436,118.6,118.57,4.173]
[1741627791180,40.47557528,118.63,118.57,4.173]
[1741627791382,8.434,118.63,118.57,4.173]
[1741627791583,0.06364396,118.61,118.59,0.05955156]
[1741627792981,8.4357,118.6,118.59,0.05955156]
[1741627794591,4.03537614,118.6,118.59,0.05955156]
[1741627795890,54.64,118.6,118.53,4.1953]
[1741627796090,8.4396,118.55,118.53,4.1953]
[1741627796295,40.47557528,118.59,118.53,4.1953]
[1741627796785,40.47557528,118.59,118.51,4.3584]
[1741627796991,8.4409,118.53,118.51,4.3584]
[1741627797387,54.64,118.56,118.51,4.41827741]
[1741627797691,0.06204628,118.53,118.51,4.41827741]
[1741627798681,8.50304628,118.53,118.51,4.41827741]
[1741627798889,0.06204628,118.53,118.51,4.41827741]
[1741627800294,54.62,118.59,118.51,6.95827741]
[1741627800489,54.62,118.59,118.51,4.3584]
[1741627800794,95.09557528,118.59,118.51,4.3584]
[1741627800989,40.47557528,118.57,118.51,4.3584]
[1741627801196,95.09557528,118.59,118.51,4.3584]
[1741627801495,0.06224617,118.55,118.53,0.06120038]
[1741627802382,0.06224617,118.55,118.53,8.50130038]
[1741627803294,0.06224617,118.55,118.54,8.44]
[1741627803493,44.52897528,118.63,118.54,2.54]
[1741627803693,99.10897528,118.63,118.51,99.41397528]
[1741627803889,99.10897528,118.63,118.53,8.44]
[1741627803890,40.47557528,118.61,118.53,8.44]
[1741627804088,8.4394,118.55,118.51,4.3584]
[1741627804288,54.58,118.58,118.51,4.3584]
[1741627804492,8.4411,118.53,118.49,4.032]
[1741627804692,49.18377528,118.57,118.53,0.05612873]
[1741627804998,57.62197528,118.57,118.49,4.032]
[1741627805191,40.47557528,118.63,118.54,0.05318863]
[1741627805387,40.47557528,118.63,118.54,54.63318863]
[1741627805593,8.4368,118.59,118.57,0.05500704]
[1741627805795,40.47557528,118.63,118.57,0.05500704]
[1741627806293,282.4924,118.64,118.57,0.05500704]
[1741627806489,322.96797528,118.64,118.57,0.05500704]
[1741627806995,278.24,118.64,118.58,54.56]
[1741627807294,45.15446333,118.67,118.58,95.03557528]
[1741627807494,45.15446333,118.67,118.63,8.4334]
[1741627807991,45.15446333,118.67,118.64,0.05505792]
[1741627808194,8.4321,118.65,118.64,0.05505792]
[1741627808398,4.2524,118.68,118.64,0.05505792]
[1741627809197,323.53446333,118.69,118.64,0.05505792]
[1741627809991,418.53003861,118.69,118.64,0.05505792]
[1741627810396,40.47557528,118.67,118.64,0.05505792]
[1741627810899,8.4318,118.66,118.64,0.05505792]
[1741627811294,44.56797528,118.67,118.59,4.2846]
[1741627811496,8.4334,118.64,118.59,4.2846]
[1741627811798,44.56797528,118.67,118.59,4.2846]
[1741627812491,0.05505792,118.64,118.62,0.05489549]
[1741627813900,40.47557528,118.63,118.53,61.12567888]
[1741627814103,94.95557528,118.65,118.55,40.47557528]
[1741627814300,54.48,118.65,118.56,54.48]
[1741627814598,4.0924,118.67,118.57,40.47557528]
[1741627814993,8.4302,118.68,118.64,8.4322]
[1741627815193,8.4302,118.68,118.62,54.48]
[1741627815498,278.26,118.74,118.65,40.53497015]
[1741627815699,45.15446333,118.75,118.67,40.47557528]
[1741627815904,134.48526775,118.76,118.68,8.0697]
[1741627816201,40.47557528,118.75,118.68,8.0697]
[1741627816396,94.93557528,118.75,118.64,62.5297]
[1741627816591,54.46,118.75,118.65,40.47557528]
[1741627816795,0.0453041,118.71,118.68,0.05858596]
[1741627817610,11.31664388,118.82,118.7,40.47557528]
[1741627817904,11.31664388,118.82,118.79,40.47557528]
[1741627818103,11.31664388,118.82,118.74,40.47557528]
[1741627818104,11.31664388,118.82,118.81,40.47557528]
[1741627818402,11.31664388,118.82,118.75,4.3539]
[1741627818607,94.89557528,118.81,118.71,6.06157803]
[1741627818897,4.0145,118.81,118.77,0.05820475]
[1741627819106,11.31664388,118.82,118.77,0.05820475]
[1741627819294,11.31664388,118.82,118.77,40.53378003]
[1741627819799,11.31664388,118.82,118.79,40.47557528]
[1741627820102,4.426,118.9,118.81,40.47557528]
[1741627820299,4.426,118.9,118.82,54.42]
[1741627820494,40.47557528,118.87,118.78,4.3768]
[1741627820693,40.47557528,118.87,118.85,0.05373983]
[1741627821006,54.4,118.89,118.85,0.05886622]
[1741627821306,4.426,118.9,118.85,0.05886622]
[1741627821906,4.0145,118.92,118.86,54.38]
[1741627822104,4.3009,118.95,118.87,40.47557528]
[1741627822307,4.3009,118.95,118.86,54.38]
[1741627822509,4.3009,118.95,118.9,0.06303275]
[1741627822803,4.3009,118.95,118.9,54.42303275]
[1741627823714,49.40857552,118.97,118.9,94.89860803]
[1741627823908,45.26657552,118.97,118.9,94.89860803]
[1741627824206,45.26657552,118.97,118.9,0.06303275]
[1741627824601,8.4108,118.96,118.9,0.06303275]
[1741627824798,40.47557528,118.95,118.9,0.06303275]
[1741627825203,4.0144,118.94,118.9,0.06303275]
[1741627825901,40.47557528,118.93,118.85,54.32]
[1741627826101,40.47557528,118.91,118.69,191.0]
[1741627826307,40.47557528,118.86,118.75,8.425]
[1741627826505,58.5622,118.85,118.76,1.68406871]
[1741627826704,48.89477528,118.84,118.76,1.68406871]
[1741627826907,48.89477528,118.84,118.72,53.35827528]
[1741627826908,40.47557528,118.84,118.72,53.35827528]
[1741627827108,40.47557528,118.84,118.79,0.0566266]
[1741627827303,0.06303275,118.81,118.79,0.0566266]
[1741627830117,8.4146,118.9,118.8,119.91338213]
[1741627830314,343.45338213,118.92,118.82,65.65338213]
[1741627830515,65.65338213,118.9,118.81,8.8122]
[1741627830710,8.4176,118.86,118.81,4.4309]
[1741627831015,8.4176,118.86,118.78,65.65338213]
[1741627831016,65.65338213,118.88,118.78,4.3813]
[1741627831209,8.4184,118.85,118.82,0.0551814]
[1741627831410,4.1462,118.88,118.82,0.0551814]
[1741627832914,69.79958213,118.88,118.82,0.0551814]
[1741627833105,4.1462,118.88,118.82,0.0551814]
[1741627833715,69.79958213,118.88,118.82,0.0551814]
[1741627834217,4.1462,118.88,118.82,0.0551814]
[1741627836515,65.65338213,118.84,118.75,4.4309]
[1741627836714,65.65338213,118.82,118.75,4.4309]
[1741627836911,65.65338213,118.82,118.72,69.66168213]
[1741627836912,65.65338213,118.8,118.72,4.0083]
[1741627837116,8.424,118.77,118.72,4.0083]
[1741627837317,65.65338213,118.8,118.72,4.0083]
[1741627837515,74.07708213,118.82,118.72,4.0083]
[1741627837715,74.07708213,118.82,118.75,0.06151079]
[1741627837716,0.05328259,118.77,118.75,0.06151079]
[1741627837913,74.07708213,118.82,118.75,0.06151079]
[1741627838113,0.0551814,118.8,118.75,0.06151079]
[1741627838311,54.18,118.79,118.75,0.06151079]
[1741627838715,8.4243,118.76,118.75,0.06151079]
[1741627839112,54.18,118.79,118.75,0.06151079]
[1741627839311,8.4243,118.76,118.75,0.06151079]
[1741627839509,0.0551814,118.77,118.69,4.3291]
[1741627839710,65.65338213,118.76,118.66,69.66168213]
[1741627840415,54.16,118.75,118.66,4.0083]
[1741627840648,0.06000598,118.72,118.7,0.06396077]
[1741627840947,8.4304,118.68,118.63,12.4723]
[1741627841139,119.87338811,118.72,118.63,12.4723]
[1741627841345,119.87338811,118.72,118.62,65.65338213]
[1741627841346,65.65338213,118.7,118.61,54.16]
[1741627841639,65.65338213,118.68,118.58,119.81338213]
[1741627841837,119.81338213,118.68,118.58,119.81338213]
[1741627842136,8.4338,118.63,118.62,0.06167578]
[1741627842732,62.65042622,118.64,118.62,0.06167578]
[1741627843039,0.05732622,118.64,118.62,0.06167578]
[1741627844547,8.4336,118.63,118.62,0.06167578]
[1741627844741,54.19732622,118.64,118.57,4.0358]
[1741627845043,119.79338213,118.64,118.54,8.7867]
[1741627845245,119.79338213,118.64,118.52,65.65338213]
[1741627845441,65.65338213,118.62,118.52,65.65338213]
[1741627845643,65.65338213,118.62,118.51,8.7387]
[1741627846048,8.4378,118.57,118.56,0.06345281]
[1741627846248,119.81338213,118.57,118.47,4.3056]
[1741627847045,397.79338213,118.57,118.46,151.97933605]
[1741627847250,65.65338213,118.55,118.46,151.97933605]
[1741627847452,0.06213929,118.53,118.5,0.06182694]
[1741627848449,8.4421,118.51,118.5,0.06182694]
[1741627848760,65.65338213,118.51,118.4,8.5843]
[1741627848936,8.4471,118.44,118.4,8.5843]
[1741627849141,65.65338213,118.49,118.38,65.65338213]
[1741627849347,119.81338213,118.47,118.36,163.0199314]
[1741627849550,54.16,118.47,118.36,163.0199314]
[1741627849947,8.449,118.42,118.4,0.06206053]
[1741627850151,0.06017074,118.43,118.4,0.06206053]
[1741627850351,54.20017074,118.43,118.4,0.06206053]
[1741627850753,0.06017074,118.43,118.4,0.06206053]
[1741627851257,278.12,118.5,118.4,65.71544266]
[1741627851443,54.16,118.49,118.4,65.71544266]
[1741627851646,54.16,118.49,118.4,65.65338213]
[1741627851839,119.81338213,118.49,118.38,65.65338213]
[1741627852041,65.65338213,118.47,118.36,69.84438213]
[1741627852241,65.65338213,118.45,118.36,4.191]
[1741627852435,65.71718065,118.43,118.4,0.06219609]
[1741627852742,65.71718065,118.43,118.35,4.3933]
[1741627852743,54.16,118.42,118.3,65.65338213]
[1741627852929,65.65338213,118.41,118.3,65.65338213]
[1741627853522,65.65338213,118.41,118.31,8.4558]
[1741627853833,0.06101053,118.37,118.34,0.05489928]
[1741627854023,54.24101053,118.37,118.34,0.05489928]
[1741627854225,54.24101053,118.37,118.28,65.65338213]
[1741627854527,4.064,118.4,118.28,65.65338213]
[1741627854824,0.06156769,118.34,118.31,0.05530782]
[1741627855223,119.83338213,118.39,118.27,9.98266396]
[1741627855420,0.06337932,118.34,118.31,0.05938314]
[1741627855625,8.4497,118.41,118.31,119.87276527]
[1741627855926,54.16,118.44,118.35,65.65338213]
[1741627856124,62.6076,118.44,118.37,8.4519]
[1741627856327,54.16,118.44,118.36,8.568]
[1741627856520,65.65338213,118.47,118.37,65.65338213]
[1741627856724,12.5088,118.48,118.42,8.4481]
[1741627856924,4.064,118.48,118.39,54.21826499]
[1741627857126,4.064,118.48,118.39,119.81338213]
[1741627857623,381.89017552,118.5,118.41,65.65338213]
[1741627857822,381.89017552,118.5,118.42,4.31]
[1741627858018,0.0532111,118.47,118.44,0.06289404]
[1741627859326,0.0532111,118.47,118.45,8.4462]
[1741627859529,0.0532111,118.47,118.44,0.06289404]
[1741627861331,65.65338213,118.54,118.45,54.14]
[1741627861635,278.54,118.55,118.51,8.4421]
[1741627862132,54.14,118.56,118.52,8.4409]
[1741627862326,8.4379,118.57,118.47,65.65338213]
[1741627862534,0.05398608,118.55,118.53,0.05849022]
[1741627863229,65.65338213,118.54,118.46,62.7646]
[1741627863430,65.65338213,118.52,118.43,54.12]
[1741627863821,65.65338213,118.5,118.43,54.12]
[1741627864027,65.65338213,118.5,118.42,4.3585]
[1741627864227,54.12,118.51,118.42,4.3585]
[1741627864430,0.05792865,118.47,118.45,0.05311418]
[1741627864731,0.05792865,118.47,118.38,4.3585]
[1741627865127,65.65338213,118.48,118.38,4.3585]
[1741627865322,65.65338213,118.46,118.38,4.3585]
[1741627865523,54.12,118.47,118.38,4.3585]
[1741627865722,0.05659229,118.43,118.41,8.50667716]
[1741627865927,0.05659229,118.43,118.41,0.05787716]
[1741627866130,4.2553,118.53,118.41,400.95125929]
[1741627866336,65.65338213,118.58,118.46,65.65338213]
[1741627866534,65.65338213,118.54,118.42,69.95668213]
[1741627866722,65.65338213,118.54,118.43,58.459]
[1741627866927,65.65338213,118.56,118.43,58.459]
[1741627866928,65.65338213,118.56,118.44,65.65338213]
[1741627867127,65.65338213,118.56,118.46,65.65338213]
[1741627867323,8.4428,118.5,118.49,0.05699102]
[1741627867529,0.05732895,118.51,118.49,0.05699102]
[1741627867729,65.65338213,118.55,118.49,0.05699102]
[1741627867927,8.4428,118.5,118.49,0.05699102]
[1741627868122,0.06129569,118.51,118.49,0.05699102]
[1741627869824,65.65338213,118.5,118.43,4.339]
[1741627870026,69.75708213,118.5,118.43,4.339]
[1741627870431,4.1037,118.5,118.43,4.339]
[1741627871132,65.65338213,118.56,118.46,65.65338213]
[1741627871438,4.2348,118.57,118.48,65.65338213]
[1741627871736,4.2348,118.57,118.48,54.08]
[1741627871737,65.65338213,118.55,118.48,54.08]
[1741627871937,4.1037,118.54,118.48,54.08]
[1741627872137,4.1037,118.54,118.44,70.06438213]
[1741627872326,65.65338213,118.51,118.44,4.411]
[1741627872528,74.09548213,118.51,118.44,4.411]
[1741627872735,54.06,118.53,118.44,70.06438213]
[1741627872934,4.1037,118.54,118.46,65.65338213]
[1741627873132,4.2348,118.57,118.48,65.65338213]
[1741627873346,69.88818213,118.57,118.49,8.4342]
[1741627873633,65.65338213,118.57,118.49,4.3681]
[1741627873830,65.65338213,118.53,118.52,0.06375392]